Cogmind - Beta 14 @@@ ROGUE MODE // 2025.04.29 @ 06:11:49 Player: Player Result: Destroyed by 24-FY6(j) with Overtuned Pulse Rifle Performance ------------- Evolutions (0) 0 Regions Visited (4) 800 Robots Destroyed (43) 215 Value Destroyed (809) 809 Prototype IDs (5) 100 Alien Tech Used (0) 0 Bonus (300) 300 TOTAL SCORE: 2224 Bonus ------- Registered with UFD 300 Cogmind --------- Core Integrity 0/250 Matter 250/300 Energy 100/100 System Corruption 0% Temperature Cool (12) Movement Treading (160) Location -9/Scraptown Parts ------- > --- POWER (1) -------- (None) > --- PROPULSION (2) --- Improved Treads > --- UTILITY (2) ------ Large Storage Unit A0-MCA's Component Scanner > --- WEAPON (2) ------- Ripper > --- INVENTORY (15) --- Scrap Suit Humpback Visual Processing Unit Expert System Scrapoid Pod Gauss Cannon Subdweller Shrapnel Launcher CPS Tube (2) Greatsword DRS Beacon (Ready) Botcube Peak State ------------ > --- POWER ------------ Improved Ion Engine > --- PROPULSION ------- Improved Treads Spiked Treads > --- UTILITY ---------- Large Storage Unit A0-MCA's Component Scanner > --- WEAPON ----------- Gauss Cannon Ripper > --- INVENTORY -------- Scrap Suit Humpback Visual Processing Unit Expert System Scrapoid Pod Gauss Cannon Subdweller Shrapnel Launcher CPS Tube Greatsword DRS Beacon Botcube [Rating: 30] Favorites ----------- Power Improved Ion Engine Engine Improved Ion Engine Propulsion Spiked Treads Treads Spiked Treads Leg Makeshift Leg Wheel Subdweller Monowheel Utility Large Storage Unit Device Seismic Detector Storage Large Storage Unit Processor Signal Interpreter Protection Scrap Shield Weapon Gauss Cannon Energy Gun Medium Laser Energy Cannon Subdweller Beam Cannon Ballistic Gun Heavy Assault Rifle Ballistic Cannon Gauss Cannon Launcher Grenade Launcher Special Weapon Mining Laser Slashing Weapon Ripper Build | -11 -10 -10 -9 -9 ------- Run | Yrd Mat Sub Rec Scr Slots Evolved . | . . . . . Power . | . . . . . Propulsion . | . . . . . Utility . | . . . . . Weapon . | . . . . . Parts Attached 77 | 7 19 33 9 9 Power 9 | 1 3 2 2 1 Engine 9 | 1 3 2 2 1 Core . | . . . . . Reactor . | . . . . . Propulsion 17 | 2 6 5 2 2 Treads 12 | 2 6 1 1 2 Leg 1 | . . 1 . . Wheel 4 | . . 3 1 . Hover . | . . . . . Flight . | . . . . . Utility 10 | 2 1 5 1 1 Device 2 | 1 . 1 . . Storage 3 | 1 1 1 . . Processor 3 | . . 1 1 1 Hackware . | . . . . . Protection 2 | . . 2 . . Artifact . | . . . . . Weapon 41 | 2 9 21 4 5 Energy Gun 5 | 2 1 . 2 . Energy Cannon 2 | . . 2 . . Ballistic Gun 12 | . 3 8 . 1 Ballistic Cannon 3 | . . . . 3 Launcher 5 | . . 4 1 . Special Weapon 9 | . 5 4 . . Impact Weapon . | . . . . . Slashing Weapon 5 | . . 3 1 1 Piercing Weapon . | . . . . . Special Melee Weapon . | . . . . . Unidentified Prototypes . | . . . . . Parts Lost 5 | . . 5 . . Power 1 | . . 1 . . Propulsion 2 | . . 2 . . Utility . | . . . . . Weapon 2 | . . 2 . . Highest Loss Streak 2 | . . 2 . . To Critical Strikes . | . . . . . Average Slot Usage (%) 97 | . 98 87 100 99 Engine 13 | . 13 13 14 13 Treads 23 | . 27 7 18 28 Wheel 4 | . . 18 9 . Device 3 | . 14 4 7 . Storage 12 | . 14 4 14 14 Processor 9 | . . . 6 14 Protection 1 | . . 9 . . Energy Gun 3 | . 16 . 4 1 Energy Cannon 2 | . . 3 14 . Ballistic Gun 6 | . 9 16 1 5 Ballistic Cannon 12 | . . . . 20 Slashing Weapon 2 | . . 5 8 . Peak Build Rating 30 | 8 8 16 16 30 Average Rating 15 | 5 7 14 14 18 On Entrance 8 | . 8 8 15 13 Naked Turns . | . . . . . Heaviest Build 43 | 13 29 35 43 41 Greatest Support 43 | 40 40 40 40 43 Greatest Overweight (x) 9 | . 3 9 3 1 Average Overweight (x) . | . . . 1 . Largest Inventory Capacity 15 | 8 15 15 15 15 Average Capacity 13 | 7 13 7 15 15 Most Carried 15 | 8 15 15 15 15 Average Carried 13 | 5 12 7 14 14 Final Capacity 15 | 8 15 15 15 15 Final Carried 15 | 8 14 15 15 15 Class Distribution -------------------- 89% | Mutant 7% | Subdweller-Mutant Dominant Class ---------------- Mutant | -10/Materials Subdweller-Mutant | -10/Subcaves Mutant | -9/Recycling Mutant | -9/Scraptown Resources | -11 -10 -10 -9 -9 ----------- Run | Yrd Mat Sub Rec Scr Matter Collected 1595 | 270 409 625 251 40 Remotely . | . . . . . Salvage Created 1484 | 220 468 243 553 . Parts 94 | 23 26 25 20 . Haulers Intercepted 1 | . 1 . . . Recyclers Shooed 8 | . 2 . 6 . Parts Field Recycled . | . . . . . Retrieved Matter . | . . . . . Parts Self-Destructed 16 | . . 16 . . Prevented . | . . . . . Kills | -11 -10 -10 -9 -9 ------- Run | Yrd Mat Sub Rec Scr Combat Hostiles Destroyed 21 | . 5 12 4 . Guns 9 | . 5 4 . . Cannons 3 | . . . 3 . AOE 9 | . . 8 1 . Classes Destroyed 10 | 2 5 2 1 . Worker 2 | . 2 . . . Tunneler 7 | 7 . . . . Hauler 1 | . 1 . . . Recycler 8 | 1 2 . 5 . Turret 2 | . . 2 . . Watcher 2 | . 2 . . . Swarmer 8 | . 2 6 . . Grunt 5 | . 3 2 . . Sentry 4 | . . . 4 . Subdweller 4 | . . 4 . . Best Kill Streak 4 | 2 2 4 4 . Combat Bots Only 4 | . 1 4 2 . Max Kills in Single Turn 2 | 1 1 2 2 . Gunslinging . | . . . . . Exploded 2 | . . 2 1 . Melee . | . . . . . Uniques/NPCs Destroyed . | . . . . . Combat | -11 -10 -10 -9 -9 -------- Run | Yrd Mat Sub Rec Scr Hostile Shots Fired 166 | . 35 88 12 31 Missed 38 | . 8 21 3 6 Damage Taken 1716 | 37 334 910 130 305 Core 255 | . 48 86 27 94 Absorbed by Shields . | . . . . . Core Remaining (%) 100 | 100 . . . . Volleys Fired 136 | 19 43 56 18 . Largest 2 | 2 2 2 2 . Hottest 150 | 90 150 150 125 . Shots Fired 229 | 38 81 83 27 . Gun 173 | 38 74 46 15 . Cannon 15 | . . 6 9 . Launcher 23 | . . 20 3 . Special 18 | . 7 11 . . Kinetic 74 | . 29 42 3 . Thermal 94 | 19 45 21 9 . Explosive 20 | . . 20 . . Electromagnetic 41 | 19 7 . 15 . Robot Hit Streak 17 | 7 8 17 11 . Robot Miss Streak 6 | 2 6 2 2 . Penetration Max . | . . . . . Secondary Targets . | . . . . . Shots Hit Robots 127 | 23 36 46 22 . Core Hits 74 | 8 20 29 17 . Critical Kills . | . . . . . Critical Parts Destroyed . | . . . . . Critical Strikes 4 | . 4 . . . Burn 3 | . 3 . . . Corrupt 1 | . 1 . . . Melee Attacks 15 | . . 12 2 1 Impact . | . . . . . Slashing 15 | . . 12 2 1 Piercing . | . . . . . Sneak Attacks 1 | . . . 1 . Combat Hostiles . | . . . . . Follow-up Attacks . | . . . . . Damage Inflicted 2869 | 341 429 1266 833 . Guns 1261 | 310 405 375 171 . Cannons 337 | . . 114 223 . Explosions 1189 | 31 24 777 357 . Melee 82 | . . . 82 . Ramming . | . . . . . Kinetic 805 | . 86 362 357 . Thermal 833 | 195 288 127 223 . Explosive 777 | . . 777 . . Electromagnetic 372 | 146 55 . 171 . Impact . | . . . . . Slashing 82 | . . . 82 . Piercing . | . . . . . Highest Corruption . | . . . . . Average Corruption . | . . . . . Corruption Purged . | . . . . . Corruption Blocked . | . . . . . Overload Shots . | . . . . . Overflow Damage 80 | 14 . . 66 . Projectiles . | . . . . . Explosions 28 | 14 . . 14 . Melee 52 | . . . 52 . Knockbacks . | . . . . . Impact . | . . . . . Kinetic . | . . . . . Secondary . | . . . . . Self-Inflicted Damage 132 | 37 33 62 . . Shots 5 | 1 1 3 . . Rammed . | . . . . . Targets Rammed . | . . . . . Kicked . | . . . . . Crushed . | . . . . . Highest Temperature 315 | 120 191 86 315 7 Average Temperature 52 | 41 40 39 95 4 Received Heat Transfer 633 | . 123 327 63 120 Effects 2 | . . . 2 . Interference 2 | . . . 2 . Siege Activations . | . . . . . Robots Corrupted . | . . . . . Combat Hostiles . | . . . . . Parts Fried . | . . . . . Impact Corruptions . | . . . . . Robots Melted . | . . . . . Combat Hostiles . | . . . . . Parts Melted 4 | 1 3 . . . Heat Transferred 2061 | 531 1049 185 296 . Parts Sabotaged . | . . . . . Parts Stolen 3 | . . . . 3 Parts Stripped . | . . . . . Power Chain Reactions 2 | 1 1 . . . Alert | -11 -10 -10 -9 -9 ------- Run | Yrd Mat Sub Rec Scr Peak Influence 149 | 40 149 . 128 . Initial 114 | . 26 . 114 . Average 54 | 16 72 . 51 . Maximum Alert Level . | . . . . . Low Security (%) 100 | 100 100 . 100 . Level 1 . | . . . . . Level 2 . | . . . . . Level 3 . | . . . . . Level 4 . | . . . . . Level 5 . | . . . . . High Security . | . . . . . Max Security . | . . . . . Squads Dispatched 1 | . 1 . . . Investigation . | . . . . . Extermination . | . . . . . Reinforcement 1 | . 1 . . . Assault . | . . . . . Garrison . | . . . . . Intercept . | . . . . . Searches Triggered . | . . . . . Construction Impeded . | . . . . . Haulers Reinforced . | . . . . . Active Scanning Responses . | . . . . . Cargo Convoy Interrupts . | . . . . . Stealth | -11 -10 -10 -9 -9 --------- Run | Yrd Mat Sub Rec Scr Distress Signals . | . . . . . Communications Jammed . | . . . . . Distress Signals . | . . . . . Times Spotted 39 | . 12 19 2 6 Peak Tracking Total 7 | . 3 4 2 7 Tactical Retreats 4 | . 1 3 . . Traps | -11 -10 -10 -9 -9 ------- Run | Yrd Mat Sub Rec Scr Traps Triggered 5 | . 5 . . . Indirectly . | . . . . . Trap Hack Attempts . | . . . . . Triggered . | . . . . . Disarmed . | . . . . . Reprogrammed . | . . . . . Reused . | . . . . . Traps Extracted . | . . . . . Installed . | . . . . . Triggered . | . . . . . Machines | -11 -10 -10 -9 -9 ---------- Run | Yrd Mat Sub Rec Scr Machines Disabled 5 | . 1 3 . 1 Max in Single Turn 1 | . 1 1 . 1 Machines Repaired . | . . . . . Machines Dismantled . | . . . . . Machines Sabotaged . | . . . . . Overloaded Fab Kills . | . . . . . Hacking | -11 -10 -10 -9 -9 --------- Run | Yrd Mat Sub Rec Scr Machines Accessed 21 | . 4 1 12 4 Terminals 9 | . 4 . 5 . Fabricators . | . . . . . Repair Stations . | . . . . . Recycling Units 6 | . . . 6 . Scanalyzers . | . . . . . Garrison Access . | . . . . . Total Hacks 40 | . 8 3 18 11 Successful 31 | . 6 3 11 11 Failed 9 | . 2 . 7 . Catastrophic 3 | . . . 3 . Database Lockouts . | . . . . . Manual 16 | . 3 . 10 3 Terminals 18 | . 8 . 10 . Fabricators . | . . . . . Repair Stations . | . . . . . Recycling Units 6 | . . . 6 . Scanalyzers . | . . . . . Garrison Access . | . . . . . Terminal Hacks 22 | . 4 3 4 11 Record 15 | . . 3 1 11 Prototype ID Bank 2 | . 2 . . . Branch Access Points 1 | . . . 1 . Emergency Access Points 1 | . . . 1 . Alert Level 2 | . 2 . . . Release Object 1 | . . . 1 . Fabricator Hacks . | . . . . . Repair Station Hacks . | . . . . . Recycling Unit Hacks 6 | . . . 6 . Report Inventory 6 | . . . 6 . Scanalyzer . | . . . . . Garrison Access Hacks . | . . . . . Unauthorized Hacks 3 | . 2 . 1 . Terminals 3 | . 2 . 1 . Botnet 3 | . 2 . 1 . Fabricators . | . . . . . Repair Stations . | . . . . . Recycling Units . | . . . . . Scanalyzers . | . . . . . Garrison Access . | . . . . . Data Cores Recovered . | . . . . . Used . | . . . . . Hacking Detections 9 | . 2 . 7 . Full Trace Events . | . . . . . Feedback Events . | . . . . . Feedback Blocked . | . . . . . Robot Schematics Acquired . | . . . . . Robots Built . | . . . . . Authchips . | . . . . . Time . | . . . . . Total Robot Build Rating . | . . . . . Part Schematics Acquired . | . . . . . Parts Built . | . . . . . Authchips . | . . . . . Time . | . . . . . Total Part Build Rating . | . . . . . Parts Repaired . | . . . . . Time . | . . . . . Parts Recycled . | . . . . . Recycled Matter . | . . . . . Retrieved Matter . | . . . . . Retrieved Components . | . . . . . Parts Scanalyzed . | . . . . . Part Schematics Acquired . | . . . . . Parts Damaged . | . . . . . Bothacking | -11 -10 -10 -9 -9 ------------ Run | Yrd Mat Sub Rec Scr Used RIF Installer . | . . . . . Robots Hacked . | . . . . . Non-combat . | . . . . . Combat . | . . . . . Robot Hacks Applied . | . . . . . Relay Couplers Released . | . . . . . Fabnet Peak Effective % . | . . . . . Robots Rewired 5 | . . . 5 . Allies Hacked . | . . . . . Hacks Repelled . | . . . . . Allies | -11 -10 -10 -9 -9 -------- Run | Yrd Mat Sub Rec Scr Total Allies 5 | . . . 5 . Largest Group 5 | . . . 5 . Highest-Rated Group 67 | . . . 67 . Highest-Rated Ally 18 | . . . 18 . Total Orders . | . . . . . Ally Attacks 2 | . . . 2 . Total Damage 42 | . . . 42 . Kills . | . . . . . Allies Corrupted . | . . . . . Allies Melted . | . . . . . Intel | -11 -10 -10 -9 -9 ------- Run | Yrd Mat Sub Rec Scr Robot Analysis Total . | . . . . . Derelict Logs Recovered 3 | . . 2 . 1 Drone Launches . | . . . . . Drone Recoveries . | . . . . . Exploration | -11 -10 -10 -9 -9 ------------- Run | Yrd Mat Sub Rec Scr Turns Passed 9970 | 289 927 1535 1364 5855 Spaces Moved 6047 | 133 428 1023 836 3627 Core 8 | 2 1 5 . . Treads 4446 | 131 427 26 235 3627 Legs 34 | . . 34 . . Wheels 1559 | . . 958 601 . Hover . | . . . . . Flight . | . . . . . Fastest Speed 50 | 50 160 95 120 160 Average Speed 150 | 158 160 121 138 160 Slowest Speed 500 | 160 240 500 250 260 Overloaded Moves . | . . . . . Propulsion Burnouts . | . . . . . Robots Hopped . | . . . . . Cave-ins Triggered . | . . . . . Exploration Rate (%) 61 | 10 59 45 99 94 Regions Visited 4 Branch Regions 3 Pre-discovered Areas 1 | . . 1 . . Known Exits Taken 1 | . . . 1 . Unknown Exits Taken 3 | 1 1 1 . . Scrap Searched 6 | . . 3 . 3 Spaces Dug 16 | . 6 9 1 . Terrain Destroyed 136 | 5 9 73 49 . Melee 3 | . . 2 1 . Projectile 7 | . 6 . 1 . AOE 126 | 5 3 71 47 . Terrain Rammed . | . . . . . Walls Destroyed . | . . . . . Machines Disabled . | . . . . . Actions | -11 -10 -10 -9 -9 --------- Run | Yrd Mat Sub Rec Scr Total 6658 | 175 578 1203 1016 3686 Wait 161 | . 60 30 60 11 Move 6043 | 132 427 1022 835 3627 Hop . | . . . . . Pick Up 83 | 13 16 29 10 15 Fast Attach 22 | 6 9 2 1 4 Attach 16 | 1 1 12 . 2 Detach 2 | . . 1 1 . Swap 39 | . 9 19 8 3 Drop 68 | 4 13 17 11 23 Fire 136 | 19 43 56 18 . Melee 15 | . . 12 2 1 Ram . | . . . . . Kick . | . . . . . Crush . | . . . . . Escape Stasis . | . . . . . Rewire 70 | . . . 70 . Trap . | . . . . . Miscellaneous 3 | . . 3 . . Route ------- -11/Scrapyard -10/Materials (discovered 3 exits: [*Mat] / [*Min] / *Sub) -10/Subcaves (discovered 3 exits: *Mat x2 / *Rec) -9/Recycling (discovered 2 exits: *Fac / *Scr) -9/Scraptown (discovered 2 exits: *Fac x2) History --------- Turn | Location | Event 6 | -11/Scrapyard | Discovered new exit (range 15) 290 | -11/Scrapyard | Entered Materials 310 | -10/Materials | Build established: Mutant 769 | -10/Materials | Discovered new exit (range 10) 912 | -10/Materials | Discovered new exit (range 9) 1205 | -10/Materials | Discovered new exit (range 8) 1217 | -10/Materials | Entered Subcaves 1224 | -10/Subcaves | Shifting Twisted Machinery released Mak. Flight Unit 1241 | -10/Subcaves | Shifting Twisted Machinery released Mak. Leg 1242 | -10/Subcaves | Shifting Twisted Machinery released Scrap Shield 1244 | -10/Subcaves | Shifting Twisted Machinery released Barrage Gun 1424 | -10/Subcaves | Learned Materials emergency access door positions 1780 | -10/Subcaves | Build established: Subdweller-Mutant 1808 | -10/Subcaves | Core integrity fell below 50% 1851 | -10/Subcaves | Discovered new exit (range 15) 1892 | -10/Subcaves | Identified exit to Materials 2087 | -10/Subcaves | Shifting Twisted Machinery released Mak. Light Armor Plating 2097 | -10/Subcaves | Shifting Twisted Machinery released Spk. Treads 2142 | -10/Subcaves | Discovered exit to Materials (range 8) 2148 | -10/Subcaves | Visited Clippyterm 2151 | -10/Subcaves | Learned 40 Factory zone layouts 2151 | -10/Subcaves | Learned Factory garrison access intel 2389 | -10/Subcaves | Discovered new exit (range 14) 2393 | -10/Subcaves | Build established: Mutant 2752 | -10/Subcaves | Entered Recycling 3477 | -9/Recycling | Discovered new exit (range 13) 3526 | -9/Recycling | Identified exit to Factory 3685 | -9/Recycling | Lost 5 allies 4063 | -9/Recycling | Scanned before Scraplab entrance 4087 | -9/Recycling | Entered Scraplab 4103 | -9/Recycling | Discovered new exit (range 3) 4114 | -9/Recycling | Identified exit to Scraptown 4116 | -9/Recycling | Entered Scraptown 4448 | -9/Scraptown | Visited Cyclists 4491 | -9/Scraptown | Visited TADAMA 4541 | -9/Scraptown | Visited Spacefarers 5055 | -9/Scraptown | Visited UFD Registry 5057 | -9/Scraptown | Registered with UFD as "Gearcase" 5114 | -9/Scraptown | Visited The Evicted 5171 | -9/Scraptown | Visited IN-MT5's Study 5819 | -9/Scraptown | Scanned Subdweller tech in exchange for log data 5824 | -9/Scraptown | Learned Research interactive machine intel 5841 | -9/Scraptown | Discovered new exit (range 13) 5948 | -9/Scraptown | Identified exit to Factory 6367 | -9/Scraptown | Visited A0-MCA Data Center 6377 | -9/Scraptown | Given a B+ rating by A0-MCA 6379 | -9/Scraptown | Found A0-MCA's Component Scanner 6462 | -9/Scraptown | Visited Botcube Research 6475 | -9/Scraptown | Found Botcube 6514 | -9/Scraptown | Visited Junk Repository 6552 | -9/Scraptown | Visited Abandonware Association 6590 | -9/Scraptown | Learned abandonware demo "REPAIR.EXE" 6590 | -9/Scraptown | Learned abandonware demo "POISON.EXE" 6776 | -9/Scraptown | Visited Derelict Rescue Squad 6786 | -9/Scraptown | Found DRS Beacon 6835 | -9/Scraptown | Visited Scrapoid Research Area 6932 | -9/Scraptown | Discovered exit to Factory (range 5) 6977 | -9/Scraptown | Found Scrap Suit 7094 | -9/Scraptown | Visited Supply Room 7135 | -9/Scraptown | Visited Cartography Club 7660 | -9/Scraptown | Entered Cyclist Reading Room 7847 | -9/Scraptown | Visited Awakened 8357 | -9/Scraptown | Visited Scrapoid Pod Storage 8366 | -9/Scraptown | Found Scrapoid Pod 9945 | -9/Scraptown | Attacked by Scraptown defenders 9951 | -9/Scraptown | Found Expert System 9967 | -9/Scraptown | Core integrity fell below 20% 9971 | -9/Scraptown | Destroyed by 24-FY6(j) with Overtuned Pulse Rifle Last Messages --------------- 08527_ C7-2B5(p): "I'm busy, go away." 08979_ Connecting with UFD Projects... 09934_ Discarded Signal Interpreter. A0-MCA: I am going to pretend I did not see you do that. For my sanity. 09936_ Component scanned: Expert System. 09945_ Machine disabled. 09945_ ANNOUNCEMENT: Intruder alert! Defend Scraptown! 09951_ Acquired Expert System. 09968_ 44-XBW(r) follow-up attacks with Ripteeth. 09968_ BF-OJT(r) follow-up attacks with Ripteeth. 09969_ Imp. Ion Engine ripped off. 09969_ Gauss Cannon ripped off. 09970_ Spk. Treads ripped off. 09970_ 5B-NJ8(r) follow-up attacks with Ripteeth. 09970_ Machine disabled. Map ----- +----------------------------------------------------+ | #???????#" | | #???????#" | | #???????#" | | #???????#" | | #???#####" | | #???#"""" """""""""""""""""""""""""""" | | #???#"""" """""""""""""""""""""""""""" | | #???#"""" ""###### ################"" | | #???#"""" ""# ##????????#"" | | #???#"""" ""# X"#????????#"" | | ###?#"""" ""# "" "" ##????????#"" | | ""#"#"""" ""# "" "" X"#??????###"" | | """"#"""" ""# " " ######### #"" | | ""#######" "" "" | | ###?????#" "" "" | | #########" ""# " " ######### #"" | | ""# "" "" ""#??????###"" | | ""# "" "" ##????????#"" | | ""# ""#????????#"" | | ""# ##????????#"" | | ""###### ################"" | | """""""""""""""""""""""""""" | | """"""""""""""""""""""""""" | | j | | b | | @r | | #""""#" r | | #????#" r j | | #????#"""""" """ """"""" """"""""""" """" | | ### ####????####### ########### ########### #### | | ??# #????????# "#??#" #?# | | ??# #????????#""" """#??#" """#?# | | ??# #????????#""" """"#??# " ""#?# # # ! | | ??# #????????#" """#??#"" * """#?#*!# ! # | | ??# #????????#""" ! """#??#"" """"#?#[?#![!# ! | | ??# #????????#""" """#??###"#######?#??####### | | ??# #????????#"""""""""#???????????????????????? | | ??# #????????#"""""""""#???????????????????????? | | ??# #????????#"""""""""#???????????????????????? | | ??# #????????#"""""""""#???????????????????????? | | ??# #????????##########????????????????????????? | | ### #??????????????????????????????????????????? | | """ #???????#################################### | | """ #???????? ##"""##"""##"""##"""##"""##"| | | "" #????????""""" ## ""##|""##" "##"""##""|##" | | #???????"""""" | | " " #???????"""""" | | """ #???????"""""" ! | | """ #????????""""" ##"""##"""##"" ##"|"##! !##"" | | ### #???????? ##"""##"""##"""##"""##"""##"" | +----------------------------------------------------+ Best States ------------- Heat Dissipation 25 Energy Generation 12 Energy Capacity 265 Matter Stores 300 Matter Capacity 300 Sight Range 16 Terrain Scan Density 10 Armor Coverage 800 Evasion (%) 41 Recoil Reduction 2 Item Schematics ----------------- None Robot Schematics ------------------ None Fabricated ------------ Nothing Alien Tech Used ----------------- None Achievements -------------- None Challenges ------------ None Game ------ Seed ArmageddonPlasmaFlakker Manual? 0 Play Time 02:24:00 Cumulative 124.4 hours Start 2025.04.28 @ 23:12:35 End 2025.04.29 @ 06:11:49 Sessions 5 Manual Loads 0 Difficulty Rogue Special Mode None Game No. 84 Rogue 84 Adventurer 0 Explorer 0 Win Type - Total 1 Types 1/0/0/0/0/0/0/0/0 Lore% 17 Gallery% 44 Achievement% 33 Wizard Run 0 Options --------- Layout 1 ASCII 0 Keyboard 0 Movement Mouse Keybinds 0 Fullscreen 1 Font 24/Smallcaps Map View 50x35 Zoom Use 0% Tactical HUD 1 Map Filters NONE Filters NONE Steam 1 RUN: f2e53e8e-f730-47f5-b5cd-92a66999a087